bitfinex/quotes_BTCUSD_20240921
["timestamp","ask_amount","ask_price","bid_price","bid_amount"]
[1726961914250,0.000826,63389.0,63388.0,0.788792]
[1726961914481,0.000826,63389.0,63388.0,0.81089462]
[1726961914977,0.000826,63389.0,63388.0,0.788792]
[1726961915231,0.1214631,63389.0,63388.0,0.81589426]
[1726961915485,0.1214631,63389.0,63388.0,0.97894793]
[1726961915726,0.1214631,63389.0,63388.0,0.34792213]
[1726961916398,0.1214631,63389.0,63388.0,0.35292213]
[1726961918734,0.1214631,63389.0,63388.0,0.66843913]
[1726961919213,0.1214631,63389.0,63388.0,0.64632867]
[1726961919446,0.1214631,63389.0,63388.0,0.66836679]
[1726961920157,0.13418859,63389.0,63388.0,0.66836679]
[1726961921217,0.13418859,63389.0,63388.0,0.98388379]
[1726961921562,0.1214631,63389.0,63388.0,0.98388379]
[1726961922058,0.1214631,63389.0,63388.0,0.66836679]
[1726961922682,0.000826,63389.0,63388.0,0.98388379]
[1726961923762,0.000826,63389.0,63388.0,0.66836679]
[1726961923978,0.1214631,63389.0,63388.0,0.66836679]
[1726961924191,0.1214631,63389.0,63388.0,0.98388379]
[1726961925059,0.1214631,63389.0,63388.0,1.29940079]
[1726961925282,0.1214631,63389.0,63388.0,0.98388379]
[1726961927854,0.1214631,63389.0,63388.0,0.97388379]
[1726961928091,0.1214631,63389.0,63388.0,0.97788379]
[1726961928537,0.1214631,63389.0,63388.0,0.97588379]
[1726961928751,0.1214631,63389.0,63388.0,0.95684567]
[1726961928972,0.1214631,63389.0,63388.0,0.97914363]
[1726961929202,0.1214631,63389.0,63388.0,0.98414363]
[1726961931908,0.000826,63389.0,63388.0,1.29966063]
[1726961934327,0.000826,63389.0,63388.0,0.98414363]
[1726961935469,0.000826,63389.0,63388.0,0.9997555]
[1726961935666,0.000826,63389.0,63388.0,0.96184567]
[1726961935887,0.000826,63389.0,63388.0,0.98396869]
[1726961937653,0.000826,63389.0,63388.0,0.98384027]
[1726961938298,0.0037774,63396.0,63389.0,0.315512]
[1726961938515,0.0037774,63396.0,63388.0,0.19517669]
[1726961938516,0.1206371,63392.0,63390.0,0.18517669]
[1726961938739,0.1206371,63392.0,63391.0,0.49537402]
[1726961939002,0.1206371,63392.0,63391.0,0.63630467]
[1726961939182,0.1206371,63392.0,63391.0,0.97389996]
[1726961939843,0.1206371,63392.0,63391.0,0.34289796]
[1726961940081,0.13337305,63392.0,63391.0,0.34289796]
[1726961941175,0.13337305,63392.0,63391.0,0.66039996]
[1726961941384,0.13337305,63392.0,63391.0,0.66239996]
[1726961941866,0.13337305,63392.0,63391.0,0.64030667]
[1726961942084,0.13337305,63392.0,63391.0,0.6623505]
[1726961943543,0.13419905,63392.0,63391.0,0.6623505]
[1726961943767,0.01356195,63392.0,63391.0,0.6623505]
[1726961943990,0.1214631,63392.0,63391.0,0.6623505]
[1726961944460,0.1214631,63392.0,63391.0,0.3468485]
[1726961944461,0.13419662,63392.0,63391.0,0.3468485]
[1726961945404,0.13419662,63392.0,63391.0,0.34708954]
[1726961945883,0.13419662,63392.0,63391.0,0.66259154]
[1726961950521,0.01355952,63392.0,63391.0,0.66259154]
[1726961951027,0.01355952,63392.0,63391.0,0.75829154]
[1726961951553,0.01355952,63392.0,63391.0,1.60993264]
[1726961951556,0.000826,63392.0,63391.0,1.95903464]
[1726961951783,0.000826,63392.0,63391.0,1.83639754]
[1726961952013,0.000826,63392.0,63391.0,1.95903464]
[1726961952241,0.000826,63392.0,63391.0,1.97767057]
[1726961952463,0.000826,63392.0,63391.0,2.09630767]
[1726961952704,0.001826,63392.0,63391.0,2.11030767]
[1726961952981,0.000826,63392.0,63391.0,1.97367057]
[1726961953224,0.001826,63392.0,63391.0,1.98767057]
[1726961953481,0.001826,63392.0,63391.0,1.84839754]
[1726961953738,0.001826,63392.0,63391.0,1.84639754]
[1726961954227,0.002826,63392.0,63391.0,1.97808159]
[1726961954465,0.002826,63392.0,63391.0,0.79834459]
[1726961954466,0.001826,63392.0,63391.0,0.79834459]
[1726961954704,0.18541363,63392.0,63391.0,0.67259154]
[1726961954923,0.18641363,63392.0,63391.0,0.66430667]
[1726961955156,0.001826,63392.0,63391.0,0.67252755]
[1726961955383,0.001826,63392.0,63391.0,0.97402955]
[1726961955384,0.000826,63392.0,63391.0,0.97402955]
[1726961955649,0.001826,63392.0,63391.0,0.98802955]
[1726961955884,0.002826,63392.0,63391.0,0.96580867]
[1726961956127,0.002826,63392.0,63391.0,0.97480867]
[1726961956128,0.003826,63392.0,63391.0,0.97480867]
[1726961956372,0.000826,63392.0,63391.0,0.95180867]
[1726961956642,0.001826,63392.0,63391.0,0.96080867]
[1726961957317,0.001826,63392.0,63391.0,1.27631067]
[1726961957775,0.002826,63392.0,63391.0,1.28531067]
[1726961958003,0.002826,63392.0,63391.0,1.38261067]
[1726961959388,0.002826,63392.0,63391.0,1.28531067]
[1726961959634,0.002826,63392.0,63391.0,0.96980867]
[1726961960260,0.002826,63392.0,63391.0,0.65430667]
[1726961960630,0.002826,63392.0,63391.0,0.96980867]
[1726961960840,0.000826,63392.0,63391.0,0.95180867]
[1726961961287,0.001826,63392.0,63391.0,0.96080867]
[1726961962125,0.002826,63392.0,63391.0,0.96980867]
[1726961967445,0.002826,63392.0,63391.0,1.06360867]
[1726961967697,0.002826,63392.0,63391.0,0.96980867]
[1726961968146,0.01530893,63392.0,63391.0,0.96980867]
[1726961968354,0.002826,63392.0,63391.0,0.96980867]
[1726961968818,0.002826,63392.0,63391.0,1.28531067]
[1726961970481,0.002826,63392.0,63391.0,0.96980867]
[1726961971127,0.002826,63392.0,63391.0,1.28531067]
[1726961971326,0.002826,63392.0,63391.0,0.96980867]
[1726961972222,0.002826,63392.0,63391.0,1.28531067]
[1726961974324,0.002826,63392.0,63391.0,0.96980867]
[1726961974669,0.002826,63392.0,63391.0,1.28531067]
[1726961979128,0.002826,63392.0,63391.0,0.96980867]
[1726961979819,0.002826,63392.0,63391.0,0.806755]
[1726961980186,0.01532081,63392.0,63391.0,0.806755]
[1726961980954,0.01532081,63392.0,63391.0,0.175751]
[1726961981443,0.01532081,63392.0,63391.0,0.018]
[1726961981653,0.17306881,63392.0,63391.0,0.018]
[1726961981870,0.45455644,63392.0,63391.0,0.018]
[1726961982075,0.11322081,63392.0,63391.0,0.018]
[1726961982285,0.45455644,63392.0,63391.0,0.009]
[1726961982508,0.45355644,63392.0,63391.0,0.009]
[1726961982721,0.76905344,63392.0,63391.0,0.009]
[1726961983359,0.76805344,63392.0,63389.0,0.001652]
[1726961983565,0.61030544,63392.0,63389.0,0.001652]
[1726961983689,0.77505344,63392.0,63391.0,0.001]
[1726961983907,0.157751,63391.0,63389.0,0.001652]
[1726961984119,0.01249317,63390.0,63389.0,0.001652]
[1726961984340,0.48575317,63390.0,63389.0,0.001652]
[1726961985040,0.89916017,63390.0,63389.0,0.001652]
[1726961985475,0.90216017,63390.0,63389.0,0.001652]
[1726961985883,0.90616017,63390.0,63389.0,0.001652]
[1726961987258,0.90816017,63390.0,63389.0,0.001652]
[1726961987475,1.29886717,63390.0,63389.0,0.001652]
[1726961987715,1.32186717,63390.0,63389.0,0.001652]
[1726961987942,0.641256,63377.0,63367.0,0.315621]
[1726961988160,1.15290329,63377.0,63364.0,0.315633]
[1726961988397,1.15490329,63377.0,63364.0,0.157817]
[1726961988633,1.15490329,63377.0,63364.0,0.473451]
[1726961988901,1.15490329,63377.0,63366.0,0.39608778]
[1726961989145,1.15490329,63377.0,63376.0,0.003652]
[1726961989822,1.49347429,63377.0,63376.0,0.003652]
[1726961990059,1.49347429,63377.0,63367.0,0.23662478]
[1726961990060,0.157808,63368.0,63367.0,0.23662478]
[1726961990306,0.157808,63368.0,63361.0,0.001652]
[1726961990307,0.023,63367.0,63361.0,0.001652]
[1726961990562,1.09038963,63363.0,63361.0,0.001652]
[1726961990810,1.1008236,63363.0,63361.0,0.001652]
[1726961992019,1.1158236,63363.0,63362.0,0.003652]
[1726961992247,1.1078236,63363.0,63362.0,0.002652]
[1726961992699,1.1148236,63363.0,63362.0,0.003652]
[1726961993191,0.7991826,63363.0,63362.0,0.003652]
[1726961993566,1.1148236,63363.0,63362.0,0.003652]
[1726961994609,0.7991826,63363.0,63362.0,0.003652]
[1726961994824,0.2100216,63363.0,63362.0,0.003652]
[1726961996053,0.2100216,63363.0,63362.0,0.319298]
[1726961996255,0.2100216,63363.0,63362.0,0.161475]
[1726961996256,0.02643397,63363.0,63362.0,0.161475]
[1726961996533,0.02643397,63363.0,63362.0,0.477121]
[1726961996753,0.02643397,63363.0,63362.0,1.27146667]
[1726961997223,0.014,63363.0,63362.0,0.477121]
[1726961997668,0.02581951,63363.0,63362.0,0.477121]
[1726961997876,0.014,63363.0,63362.0,0.477121]
[1726961998083,0.02581951,63363.0,63362.0,0.477121]
[1726961998286,0.01881951,63363.0,63362.0,0.791767]
[1726961998706,0.007,63363.0,63362.0,0.791767]
[1726961998938,0.18358763,63372.0,63362.0,0.791767]
[1726961998939,0.18358763,63372.0,63367.0,0.157809]
[1726961999140,0.23662478,63371.0,63367.0,0.157809]
[1726961999350,0.01182077,63371.0,63363.0,0.23662478]
[1726961999553,0.01182077,63371.0,63367.0,0.157809]
[1726962000708,0.01182077,63371.0,63362.0,0.001652]
[1726962000921,0.01182077,63371.0,63369.0,0.157805]
[1726962001133,0.18358763,63372.0,63367.0,0.157809]
[1726962001339,0.01182644,63370.0,63367.0,0.157809]
[1726962001549,0.01183266,63371.0,63367.0,0.157809]
[1726962001773,0.01182221,63369.0,63367.0,0.157809]
[1726962001981,0.004,63371.0,63368.0,0.157808]
[1726962002216,0.002,63371.0,63368.0,0.157808]
[1726962002431,0.002,63371.0,63366.0,0.157812]
[1726962002432,0.157801,63371.0,63366.0,0.157812]
[1726962002656,0.001,63370.0,63366.0,0.157812]
[1726962002888,0.001,63370.0,63367.0,0.001652]
[1726962003108,0.157806,63369.0,63367.0,0.001652]
[1726962003349,0.001,63370.0,63367.0,0.001652]
[1726962003577,0.157805,63369.0,63367.0,0.001652]
[1726962003827,0.18358763,63368.0,63367.0,0.001652]
[1726962004233,0.18358763,63368.0,63367.0,0.159461]
[1726962004948,0.18358763,63368.0,63367.0,0.001652]
[1726962005179,0.18358763,63368.0,63367.0,0.002652]
[1726962005421,0.34139563,63368.0,63367.0,0.002652]
[1726962005888,0.34139563,63368.0,63367.0,0.003652]
[1726962005889,0.43219563,63368.0,63367.0,0.003652]
[1726962007110,0.43219563,63368.0,63367.0,0.002652]
[1726962007593,0.34139563,63368.0,63367.0,0.003652]
[1726962008041,0.34139563,63368.0,63367.0,0.002652]
[1726962008273,0.34139563,63368.0,63367.0,0.003652]
[1726962008782,0.1,63385.0,63381.0,0.157774]
[1726962009048,0.2367144,63385.0,63368.0,0.16305367]
[1726962009285,0.1699,63389.0,63373.0,0.2367144]
[1726962009531,0.1699,63389.0,63381.0,0.157773]
[1726962009532,0.157763,63386.0,63381.0,0.157773]
[1726962009793,0.18358763,63388.0,63379.0,0.315559]
[1726962009997,0.157769,63384.0,63379.0,0.15778]
[1726962010241,0.157769,63384.0,63381.0,0.001]
[1726962010503,0.011,63385.0,63384.0,0.157768]
[1726962010747,0.000826,63390.0,63384.0,0.315537]
[1726962010980,0.000826,63390.0,63377.0,0.0985]
[1726962010981,0.000826,63390.0,63389.0,0.157756]
[1726962011221,0.157767,63385.0,63380.0,0.157777]
[1726962011465,0.157762,63387.0,63382.0,0.157772]
[1726962011706,0.000826,63390.0,63382.0,0.315546]
[1726962011941,0.18358763,63384.0,63382.0,0.157771]
[1726962012180,0.18358763,63384.0,63381.0,0.94665594]
[1726962012419,0.18358763,63384.0,63382.0,0.157772]
[1726962012662,0.0122564,63383.0,63382.0,0.157772]
[1726962014318,0.0122564,63383.0,63382.0,0.159772]
[1726962014518,0.0122564,63383.0,63382.0,0.790866]
[1726962014971,0.000826,63390.0,63386.0,0.315522]
[1726962015216,0.000826,63390.0,63389.0,0.157756]
[1726962015448,0.000826,63390.0,63389.0,1.26734567]
[1726962016164,0.006826,63390.0,63389.0,1.26734567]
[1726962016624,0.005826,63390.0,63389.0,1.26734567]
[1726962016856,0.005826,63390.0,63389.0,1.26934567]
[1726962017058,0.000826,63390.0,63389.0,1.26934567]
[1726962017319,0.001826,63390.0,63389.0,0.96083367]
[1726962017796,0.000826,63390.0,63389.0,0.95383367]
[1726962018254,0.001826,63390.0,63389.0,1.27834567]
[1726962018494,0.002826,63390.0,63389.0,1.28534567]
[1726962018720,0.001826,63390.0,63389.0,0.96283367]
[1726962019172,0.002826,63390.0,63389.0,0.97283367]
[1726962019530,0.000826,63390.0,63389.0,0.95183367]
[1726962019623,0.000826,63390.0,63389.0,0.96183367]
[1726962019852,0.001826,63390.0,63389.0,0.96183367]
[1726962020087,0.002826,63390.0,63389.0,0.97283367]
[1726962020312,0.001826,63390.0,63389.0,0.96283367]
[1726962020532,0.002826,63390.0,63389.0,0.97383367]
[1726962020987,0.001826,63390.0,63389.0,0.96283367]
[1726962021674,0.002826,63390.0,63389.0,0.97383367]
[1726962022372,0.001826,63390.0,63389.0,0.96283367]
[1726962022590,0.000826,63390.0,63389.0,0.95183367]
[1726962022825,0.001826,63390.0,63389.0,1.78875767]
[1726962023051,0.000826,63392.0,63391.0,1.330747]
[1726962023298,0.000826,63392.0,63391.0,1.80930267]
[1726962023512,0.000826,63392.0,63391.0,2.12480467]
[1726962023733,0.0037774,63396.0,63395.0,1.646159]
[1726962023976,0.0037774,63396.0,63395.0,1.80921267]
[1726962025191,0.0037774,63396.0,63395.0,1.82321267]
[1726962025661,0.0037774,63396.0,63395.0,1.80921267]
[1726962026163,0.0037774,63396.0,63395.0,1.50773067]
[1726962026396,0.0037774,63396.0,63395.0,1.52173067]
[1726962026633,0.0037774,63396.0,63395.0,1.50773067]
[1726962026878,0.0037774,63396.0,63395.0,1.52173067]
[1726962027323,0.0037774,63396.0,63395.0,1.50773067]
[1726962028234,0.0037774,63396.0,63395.0,1.52173067]
[1726962028709,0.0037774,63396.0,63395.0,1.83721267]
[1726962029406,0.0037774,63396.0,63395.0,1.52173067]
[1726962029858,0.0037774,63396.0,63395.0,1.83721267]
[1726962030547,0.0037774,63396.0,63395.0,1.52173067]
[1726962031049,0.0037774,63396.0,63395.0,1.83721267]
[1726962031508,0.0037774,63396.0,63395.0,1.52173067]
[1726962032457,0.0037774,63396.0,63395.0,1.49373067]
[1726962032679,0.0037774,63396.0,63395.0,1.50773067]
[1726962032924,0.0037774,63396.0,63395.0,1.83721267]
[1726962033169,0.0037774,63396.0,63395.0,1.83921267]
[1726962033617,0.0037774,63396.0,63395.0,1.82321267]
[1726962034070,0.0037774,63396.0,63395.0,1.81121267]
[1726962034552,0.0037774,63396.0,63395.0,1.83921267]
[1726962035262,0.0037774,63396.0,63395.0,1.82321267]
[1726962035491,0.0037774,63396.0,63395.0,1.83721267]
[1726962035706,0.0037774,63396.0,63395.0,1.82321267]
[1726962035917,0.0037774,63396.0,63395.0,1.90451267]
[1726962036136,0.0037774,63396.0,63395.0,1.91851267]
[1726962036352,0.0037774,63396.0,63395.0,1.90451267]
[1726962036809,4e-07,63396.0,63395.0,1.92051267]
[1726962037031,4e-07,63396.0,63395.0,2.23599467]
[1726962037275,4e-07,63399.0,63398.0,1.421601]
[1726962037517,4e-07,63399.0,63398.0,2.3056993]
[1726962038094,4e-07,63399.0,63398.0,2.30759283]
[1726962038284,0.0031505,63404.0,63403.0,2.14250863]
[1726962038504,0.0031505,63404.0,63403.0,2.3868623]
[1726962038769,0.0031505,63404.0,63403.0,2.45415932]
[1726962038989,0.000826,63416.0,63415.0,0.002]
[1726962039212,0.000826,63416.0,63415.0,1.18879463]
[1726962039437,0.000826,63416.0,63415.0,1.81640584]
[1726962040374,0.000826,63416.0,63415.0,1.83940584]
[1726962040878,0.003826,63416.0,63415.0,1.84040584]
[1726962041597,0.003826,63416.0,63415.0,1.81840584]
[1726962041824,0.003826,63416.0,63415.0,1.81740584]
[1726962042043,0.000826,63416.0,63415.0,1.81640584]
[1726962042304,0.000826,63416.0,63415.0,1.50102384]
[1726962042526,0.000826,63416.0,63415.0,1.50002384]
[1726962043008,0.000826,63416.0,63415.0,1.50102384]
[1726962043253,0.000826,63416.0,63415.0,1.50002384]
[1726962043489,0.000826,63416.0,63415.0,1.50102384]
[1726962044453,0.000826,63416.0,63415.0,1.50002384]
[1726962044935,0.001826,63416.0,63415.0,1.51302384]
[1726962045418,0.002826,63416.0,63415.0,1.52702384]
[1726962045656,0.001826,63416.0,63415.0,1.51302384]
[1726962045896,0.001826,63416.0,63415.0,1.50102384]
[1726962046137,0.002826,63416.0,63415.0,1.50502384]
[1726962046631,0.002826,63416.0,63415.0,1.50102384]
[1726962046632,0.001826,63416.0,63415.0,1.50102384]
[1726962046852,0.002826,63416.0,63415.0,1.50502384]
[1726962047330,0.002826,63416.0,63415.0,0.98909867]
[1726962047562,0.001826,63416.0,63415.0,0.98709867]
[1726962047798,0.002826,63416.0,63415.0,1.00109867]
[1726962048047,0.001826,63416.0,63415.0,0.98709867]
[1726962048291,0.18358763,63431.0,63425.0,0.157666]
[1726962048292,0.16409163,63431.0,63425.0,0.157666]
[1726962048537,0.16409163,63431.0,63426.0,0.157663]
[1726962048744,0.0130132,63430.0,63426.0,0.157663]
[1726962048966,0.0130132,63430.0,63427.0,0.157661]
[1726962049177,0.0130132,63430.0,63425.0,0.157666]
[1726962049394,0.16409163,63431.0,63415.0,0.20764367]
[1726962049616,0.01301109,63429.0,63424.0,0.157666]
[1726962049834,0.01300714,63430.0,63425.0,0.157666]
[1726962050052,0.0130029,63428.0,63425.0,0.157666]
[1726962050272,0.01300502,63429.0,63423.0,0.157671]
[1726962050546,0.0130029,63428.0,63426.0,0.315328]
[1726962050757,0.0130029,63428.0,63425.0,0.158665]
[1726962050991,0.001,63430.0,63426.0,0.03945201]
[1726962051230,0.001,63430.0,63425.0,0.157666]
[1726962051231,0.01300078,63427.0,63425.0,0.158666]
[1726962051457,0.16409163,63431.0,63426.0,0.157663]
[1726962051942,0.16409163,63431.0,63426.0,0.158663]
[1726962052198,0.16409163,63431.0,63426.0,0.157663]
[1726962052451,0.32174363,63431.0,63426.0,0.02440016]
[1726962052928,0.16409163,63431.0,63425.0,0.02840016]
[1726962053175,0.0773,63432.0,63426.0,0.02440016]
[1726962053425,0.0723,63432.0,63431.0,0.157651]
[1726962054416,0.25588763,63432.0,63430.0,0.157651]
[1726962054914,0.25588763,63432.0,63431.0,0.157651]
[1726962055370,0.0723,63432.0,63431.0,0.157651]
[1726962057011,0.0723,63432.0,63431.0,0.788257]
[1726962057281,0.00577439,63434.0,63433.0,0.472939]
[1726962057496,0.00577439,63434.0,63433.0,0.95128567]
[1726962057716,0.00577439,63434.0,63433.0,0.63599267]
[1726962057934,0.00577439,63434.0,63433.0,0.95128567]
[1726962058208,0.00577439,63434.0,63433.0,0.63599267]
[1726962058427,0.00677439,63434.0,63433.0,0.64499267]
[1726962058666,0.00777439,63434.0,63433.0,0.97028567]
[1726962058904,0.00677439,63434.0,63433.0,0.96128567]
[1726962059383,0.00677439,63434.0,63433.0,1.06628567]
[1726962060083,0.00577439,63434.0,63433.0,0.95628567]
[1726962060543,0.00577439,63434.0,63433.0,0.95128567]
[1726962060798,0.18936202,63434.0,63433.0,0.95128567]
[1726962061036,0.00677439,63434.0,63433.0,0.64499267]
[1726962061291,0.19036202,63434.0,63433.0,0.014]
[1726962061522,0.20383021,63434.0,63433.0,0.02943705]
[1726962061750,0.20383021,63434.0,63433.0,0.005]
[1726962061995,0.20483021,63434.0,63433.0,0.009]
[1726962062437,0.02024258,63434.0,63429.0,0.18209205]
[1726962062664,0.0755,63433.0,63429.0,0.18209205]
[1726962062881,0.0755,63433.0,63426.0,0.315323]
[1726962062882,0.157656,63429.0,63428.0,0.02443705]
[1726962063096,0.18358763,63427.0,63425.0,0.02443705]
[1726962063326,0.19803459,63426.0,63424.0,0.23647557]
[1726962063563,0.19803459,63426.0,63424.0,0.157668]
[1726962063824,0.19803459,63426.0,63423.0,0.02443705]
[1726962063825,0.01444696,63426.0,63423.0,0.15767]
[1726962064068,0.01444696,63426.0,63422.0,0.23647557]
[1726962064069,0.18358763,63425.0,63422.0,0.23647557]
[1726962064294,0.18358763,63425.0,63421.0,0.02443705]
[1726962064513,0.01299441,63424.0,63419.0,0.23647557]
[1726962064767,0.01299441,63424.0,63420.0,0.157678]
[1726962065013,0.01299441,63424.0,63418.0,0.02443705]
[1726962065246,0.18358763,63422.0,63418.0,0.02443705]
[1726962065480,0.18358763,63422.0,63421.0,0.473028]
[1726962065705,0.001,63426.0,63425.0,0.157666]
[1726962065991,0.001,63426.0,63422.0,0.157673]
[1726962065992,0.01544066,63426.0,63422.0,0.157673]
[1726962066449,0.01444066,63426.0,63422.0,0.157673]
[1726962066673,0.01444066,63426.0,63422.0,0.157672]
[1726962066904,0.01444066,63426.0,63422.0,0.315346]
[1726962067134,0.18358763,63427.0,63425.0,0.157666]
[1726962067354,0.18358763,63432.0,63424.0,0.315337]
[1726962067597,0.18358763,63432.0,63427.0,0.157659]
[1726962067816,0.18358763,63432.0,63428.0,0.157658]
[1726962068036,0.18358763,63432.0,63428.0,0.157657]
[1726962068262,0.18358763,63432.0,63429.0,0.157654]
[1726962068489,0.18358763,63432.0,63423.0,0.315339]
[1726962068710,0.18358763,63432.0,63425.0,0.94604396]
[1726962068947,0.18358763,63432.0,63431.0,0.157651]
[1726962068948,0.007,63432.0,63431.0,0.157651]
[1726962069167,0.007,63432.0,63431.0,0.472954]
[1726962069399,0.157652,63431.0,63424.0,0.001]
[1726962069633,0.34823663,63432.0,63426.0,0.315326]
[1726962069921,0.19058763,63432.0,63424.0,0.001]
[1726962070150,0.18358763,63427.0,63424.0,0.001]
[1726962070615,0.15767,63424.0,63419.0,0.15768]
[1726962070853,0.18358763,63425.0,63420.0,0.157678]
[1726962070854,0.34125463,63425.0,63420.0,0.157678]
[1726962071093,0.157667,63425.0,63420.0,0.157678]
[1726962071381,0.18358763,63421.0,63420.0,0.157678]
[1726962071844,0.18358763,63421.0,63419.0,0.007]
[1726962072317,0.001,63424.0,63423.0,0.157671]
[1726962072771,0.001,63424.0,63423.0,0.473014]
[1726962072994,0.01499283,63424.0,63423.0,0.473014]
[1726962073239,0.001,63424.0,63423.0,0.473014]
[1726962073481,0.18358763,63430.0,63423.0,0.315343]
[1726962073738,0.18358763,63430.0,63426.0,0.157663]
[1726962073974,0.18358763,63430.0,63423.0,0.007]
[1726962073975,0.01300342,63429.0,63423.0,0.007]
[1726962074213,0.01300342,63429.0,63425.0,0.157665]
[1726962074455,0.01300342,63429.0,63426.0,0.157662]
[1726962074683,0.01300342,63429.0,63427.0,0.157661]
[1726962075127,0.01300342,63429.0,63424.0,0.315335]
[1726962075630,0.01300342,63429.0,63426.0,0.157662]
[1726962076068,0.01300342,63429.0,63427.0,0.15766]
[1726962076539,0.01300342,63429.0,63428.0,0.157659]
[1726962076766,0.01300342,63429.0,63425.0,0.315329]
[1726962077002,0.01300342,63429.0,63427.0,0.157661]
[1726962077237,0.18358763,63431.0,63428.0,0.157659]
[1726962078193,0.18358763,63431.0,63428.0,0.157658]
[1726962078412,0.18358763,63431.0,63430.0,0.157654]
[1726962079765,0.00659939,63434.0,63428.0,0.00165]
[1726962079999,0.18358763,63431.0,63428.0,0.00165]
[1726962081164,0.18358763,63431.0,63429.0,0.157655]
[1726962081866,0.18358763,63431.0,63430.0,0.157654]
[1726962082349,0.18358763,63431.0,63430.0,0.472962]
[1726962082578,0.18358763,63431.0,63430.0,0.157654]
[1726962083009,0.19759329,63431.0,63430.0,0.157654]
[1726962083268,0.19659329,63431.0,63430.0,0.157654]
[1726962083720,0.19659329,63431.0,63428.0,0.00165]
[1726962084171,0.01300566,63431.0,63428.0,0.00165]
[1726962084441,0.18358763,63429.0,63428.0,0.00165]
[1726962084892,0.19658906,63429.0,63428.0,0.00165]
[1726962085337,1.08137106,63429.0,63428.0,0.00165]
[1726962085562,1.10437106,63429.0,63428.0,0.00165]
[1726962086512,1.10737106,63429.0,63428.0,0.00165]
[1726962086752,1.11537106,63429.0,63428.0,0.00265]
[1726962087222,1.11637106,63429.0,63428.0,0.00265]
[1726962087455,1.11237106,63429.0,63428.0,0.00265]
[1726962087680,1.12137106,63429.0,63428.0,0.00365]
[1726962088151,0.39424506,63429.0,63428.0,0.00365]
[1726962088385,0.21358906,63429.0,63428.0,0.00365]
[1726962088616,0.21358906,63429.0,63428.0,0.161309]
[1726962088851,0.21358906,63429.0,63428.0,0.00365]
[1726962089119,0.18358763,63429.0,63428.0,0.00165]
[1726962089345,0.36224506,63429.0,63428.0,0.00265]
[1726962089469,0.36924506,63429.0,63428.0,0.00365]
[1726962089899,0.21158906,63429.0,63428.0,0.00365]
[1726962090552,0.21158906,63429.0,63428.0,0.161309]
[1726962090977,0.21158906,63429.0,63428.0,0.00365]
[1726962091206,0.015,63429.0,63428.0,0.476627]
[1726962091638,0.02800143,63429.0,63428.0,0.476627]
[1726962094828,0.02800143,63429.0,63428.0,0.161309]
[1726962095067,0.21158906,63429.0,63428.0,0.00365]
[1726962096021,0.68455806,63429.0,63428.0,0.00365]
[1726962097180,0.36924506,63429.0,63428.0,0.00365]
[1726962097392,0.21158906,63429.0,63428.0,0.00365]
[1726962097604,0.36924506,63429.0,63428.0,0.00365]
[1726962097833,0.68455806,63429.0,63428.0,0.00365]
[1726962101765,0.36924506,63429.0,63428.0,0.00365]
[1726962102033,0.21158906,63429.0,63428.0,0.00365]
[1726962102267,0.68455806,63429.0,63428.0,0.00365]
[1726962103406,0.36924506,63429.0,63428.0,0.00365]
[1726962104055,0.68455806,63429.0,63428.0,0.00365]
[1726962104727,0.21158906,63429.0,63428.0,0.00365]
[1726962105178,0.36924506,63429.0,63428.0,0.00365]
[1726962105401,0.21158906,63429.0,63428.0,0.00365]
[1726962106039,0.02800143,63429.0,63428.0,0.00365]
[1726962107143,0.02800143,63429.0,63428.0,0.161309]
[1726962107369,0.02800143,63429.0,63428.0,0.00365]
[1726962110456,0.02800143,63429.0,63428.0,0.161309]
[1726962110870,0.02800143,63429.0,63428.0,0.00365]
[1726962111285,0.02800143,63429.0,63428.0,0.476627]
[1726962112208,0.015,63429.0,63428.0,0.476627]
[1726962112431,0.02796886,63429.0,63428.0,0.476627]
[1726962112893,0.02796886,63429.0,63428.0,0.50034256]
[1726962113355,0.02796886,63429.0,63428.0,0.476627]
[1726962113592,0.02796886,63429.0,63428.0,0.791945]
[1726962113846,0.02796886,63429.0,63428.0,1.36091667]
[1726962114087,0.015,63429.0,63428.0,1.36091667]
[1726962114736,0.008,63429.0,63428.0,1.35991667]
[1726962114957,0.008,63429.0,63428.0,1.36491667]
[1726962115163,0.000825,63432.0,63431.0,1.10356]
[1726962115388,0.000825,63432.0,63431.0,1.26661367]
[1726962117984,0.000825,63432.0,63431.0,0.95131067]
[1726962118200,0.002825,63432.0,63431.0,0.96731067]
[1726962119133,0.002825,63432.0,63431.0,0.488954]
[1726962119358,0.01582877,63432.0,63431.0,0.488954]
[1726962119808,0.01582877,63432.0,63431.0,0.173651]
[1726962120020,0.01582877,63432.0,63431.0,0.72544821]
[1726962120242,0.01582877,63432.0,63431.0,0.804257]
[1726962120469,0.01582877,63432.0,63431.0,1.28261367]
[1726962120470,0.002825,63432.0,63431.0,1.28261367]
[1726962120688,0.002825,63432.0,63431.0,0.96731067]
[1726962123175,0.002825,63432.0,63431.0,0.173651]
[1726962123394,0.475772,63432.0,63431.0,0.016]
[1726962123604,0.17492326,63432.0,63431.0,0.016]
[1726962124741,0.17292326,63432.0,63428.0,0.159308]
[1726962124994,0.18358763,63429.0,63428.0,0.159308]
[1726962125403,0.19804368,63429.0,63428.0,0.159308]
[1726962125650,0.19804368,63429.0,63428.0,0.474626]
[1726962126092,0.19804368,63429.0,63428.0,0.476626]
[1726962126544,0.01445605,63429.0,63428.0,0.793944]
[1726962126750,0.000825,63432.0,63431.0,0.472954]
[1726962126974,0.01528811,63432.0,63431.0,0.472954]
[1726962127195,0.000825,63432.0,63431.0,0.472954]
[1726962127407,0.01528811,63432.0,63431.0,0.472954]
[1726962128342,0.01528811,63432.0,63431.0,0.788257]
[1726962128558,0.000825,63432.0,63431.0,0.472954]
[1726962128780,0.01527989,63432.0,63431.0,0.472954]
[1726962129014,0.000825,63432.0,63431.0,0.157651]
[1726962129717,0.000825,63432.0,63431.0,0.472954]
[1726962129935,0.000825,63432.0,63431.0,0.788257]
[1726962131850,0.000825,63432.0,63431.0,0.792257]
[1726962132058,0.000825,63432.0,63431.0,0.788257]
[1726962132286,0.000825,63432.0,63431.0,0.793257]
[1726962132970,0.000825,63432.0,63431.0,0.477954]
[1726962133188,0.01527634,63432.0,63431.0,0.477954]